[Event "Live Chess"]
[Site "Chess.com"]
[Date "2023.05.20"]
[Round "-"]
[White "viktorskliarov"]
[Black "Leonid_Starozhilov"]
[Result "1/2-1/2"]
[WhiteElo "2650"]
[BlackElo "2653"]
[TimeControl "300"]
[EndTime "11:21:44 PDT"]
[Termination "Game drawn by agreement"]

1. e4 {[%clk 0:04:58.1]} 1... Nc6 {[%clk 0:04:57.7]} 2. Nc3 {[%clk 0:04:56.9]}
2... d6 {[%clk 0:04:56.4]} 3. d4 {[%clk 0:04:52.1]} 3... Nf6 {[%clk 0:04:55.1]}
4. f3 {[%clk 0:04:50.7]} 4... e5 {[%clk 0:04:48.9]} 5. Nge2 {[%clk 0:04:49.8]}
5... exd4 {[%clk 0:04:33]} 6. Nxd4 {[%clk 0:04:48.2]} 6... Nxd4 {[%clk
0:04:25.7]} 7. Qxd4 {[%clk 0:04:46.8]} 7... c6 {[%clk 0:04:25.2]} 8. Bf4 {[%clk
0:04:43.4]} 8... Nh5 {[%clk 0:03:56]} 9. Be3 {[%clk 0:04:42]} 9... Be6 {[%clk
0:03:36]} 10. O-O-O {[%clk 0:04:39.5]} 10... Qa5 {[%clk 0:03:20]} 11. Kb1 {[%clk
0:04:35.2]} 11... Nf6 {[%clk 0:03:00.1]} 12. Bc4 {[%clk 0:04:30.9]} 12... Be7
{[%clk 0:02:46.6]} 13. g4 {[%clk 0:04:18.8]} 13... O-O {[%clk 0:02:39.9]} 14. h4
{[%clk 0:04:16.7]} 14... Bxc4 {[%clk 0:02:14.8]} 15. Qxc4 {[%clk 0:04:15.2]}
15... Rad8 {[%clk 0:02:06.1]} 16. g5 {[%clk 0:03:51.1]} 16... Nh5 {[%clk
0:01:58.2]} 17. Rd3 {[%clk 0:03:49.7]} 17... Rd7 {[%clk 0:01:37.9]} 18. Rhd1
{[%clk 0:03:47.6]} 18... Rfd8 {[%clk 0:01:37.5]} 19. a3 {[%clk 0:03:45.6]} 19...
a6 {[%clk 0:01:34.3]} 20. f4 {[%clk 0:03:41.5]} 20... Qc7 {[%clk 0:01:30.9]} 21.
f5 {[%clk 0:03:35.9]} 1/2-1/2

[Event "Live Chess"]
[Site "Chess.com"]
[Date "2023.05.20"]
[Round "-"]
[White "martynstanley"]
[Black "vinni3012"]
[Result "0-1"]
[WhiteElo "1019"]
[BlackElo "1809"]
[TimeControl "300"]
[EndTime "11:21:45 PDT"]
[Termination "vinni3012 won by checkmate"]

1. d4 {[%clk 0:04:49.8]} 1... d5 {[%clk 0:04:57]} 2. e3 {[%clk 0:04:44.8]} 2...
Nf6 {[%clk 0:04:53.5]} 3. Bd3 {[%clk 0:04:43.8]} 3... b6 {[%clk 0:04:52]} 4. c3
{[%clk 0:04:43.1]} 4... Nbd7 {[%clk 0:04:51.1]} 5. f4 {[%clk 0:04:42.1]} 5... c5
{[%clk 0:04:49.8]} 6. Nf3 {[%clk 0:04:41]} 6... Bb7 {[%clk 0:04:48.9]} 7. O-O
{[%clk 0:04:39.9]} 7... Ne4 {[%clk 0:04:46.3]} 8. Nbd2 {[%clk 0:04:38.6]} 8...
Ndf6 {[%clk 0:04:41.2]} 9. Ne5 {[%clk 0:04:37.2]} 9... e6 {[%clk 0:04:39.1]} 10.
Rf3 {[%clk 0:04:35.7]} 10... g6 {[%clk 0:04:28.3]} 11. Rh3 {[%clk 0:04:33.6]}
11... h5 {[%clk 0:04:27.3]} 12. Bc2 {[%clk 0:04:28.9]} 12... Bg7 {[%clk
0:04:25]} 13. Qe2 {[%clk 0:04:21.2]} 13... c4 {[%clk 0:04:19.2]} 14. b3 {[%clk
0:04:19.2]} 14... b5 {[%clk 0:04:18.1]} 15. bxc4 {[%clk 0:04:17.8]} 15... dxc4
{[%clk 0:03:55.7]} 16. Ba3 {[%clk 0:04:16.3]} 16... Nxc3 {[%clk 0:03:51.3]} 17.
Qf1 {[%clk 0:04:08.7]} 17... a5 {[%clk 0:03:30.3]} 18. Ne4 {[%clk 0:03:55.9]}
18... Ncxe4 {[%clk 0:03:26.7]} 19. Bxe4 {[%clk 0:03:53.3]} 19... Bxe4 {[%clk
0:03:24.7]} 20. Nc6 {[%clk 0:03:46.5]} 20... Bxc6 {[%clk 0:03:22]} 21. Bc5
{[%clk 0:03:44.3]} 21... Bf8 {[%clk 0:03:18.1]} 22. a3 {[%clk 0:03:42.3]} 22...
Bxc5 {[%clk 0:03:17]} 23. dxc5 {[%clk 0:03:39.6]} 23... Qe7 {[%clk 0:03:07]} 24.
Rd1 {[%clk 0:03:37.8]} 24... Qxc5 {[%clk 0:03:02.1]} 25. Qe2 {[%clk 0:03:36.3]}
25... Be4 {[%clk 0:02:57.4]} 26. Rc1 {[%clk 0:03:29.2]} 26... Ke7 {[%clk
0:02:54.7]} 27. Rc3 {[%clk 0:03:27.7]} 27... Rhd8 {[%clk 0:02:51.4]} 28. Rh4
{[%clk 0:03:23.3]} 28... Rd3 {[%clk 0:02:48.8]} 29. Rxd3 {[%clk 0:03:19.5]}
29... cxd3 {[%clk 0:02:48.7]} 30. Qd2 {[%clk 0:03:17.6]} 30... Qc2 {[%clk
0:02:47.6]} 31. Qe1 {[%clk 0:03:15.2]} 31... d2 {[%clk 0:02:46.1]} 32. Qe2
{[%clk 0:03:13.2]} 32... d1=Q+ {[%clk 0:02:45.8]} 33. Qxd1 {[%clk 0:03:12.4]}
33... Qxd1+ {[%clk 0:02:45.7]} 34. Kf2 {[%clk 0:03:11.9]} 34... Rd8 {[%clk
0:02:44.6]} 35. Kg3 {[%clk 0:03:11.1]} 35... Rd2 {[%clk 0:02:44.5]} 36. f5
{[%clk 0:03:07.8]} 36... Rxg2+ {[%clk 0:02:44.4]} 37. Kh3 {[%clk 0:03:05.4]}
37... Bxf5+ {[%clk 0:02:42.6]} 38. Kxg2 {[%clk 0:03:03.1]} 38... Qg4+ {[%clk
0:02:39.6]} 39. Rxg4 {[%clk 0:03:02.1]} 39... Nxg4 {[%clk 0:02:38.9]} 40. h3
{[%clk 0:03:01.1]} 40... Nxe3+ {[%clk 0:02:38]} 41. Kf3 {[%clk 0:03:00.1]} 41...
b4 {[%clk 0:02:37.9]} 42. axb4 {[%clk 0:02:59]} 42... axb4 {[%clk 0:02:36.8]}
43. Kxe3 {[%clk 0:02:58.5]} 43... b3 {[%clk 0:02:36.7]} 44. Kd2 {[%clk
0:02:57.9]} 44... b2 {[%clk 0:02:35.5]} 45. Kc3 {[%clk 0:02:56.4]} 45... b1=Q
{[%clk 0:02:35.4]} 46. Kd4 {[%clk 0:02:55.7]} 46... Qh1 {[%clk 0:02:35.2]} 47.
h4 {[%clk 0:02:55.1]} 47... Qh3 {[%clk 0:02:35.1]} 48. Kc5 {[%clk 0:02:53.7]}
48... Qxh4 {[%clk 0:02:34.9]} 49. Kb6 {[%clk 0:02:52.9]} 49... Qg5 {[%clk
0:02:34.8]} 50. Ka5 {[%clk 0:02:52]} 50... h4 {[%clk 0:02:34.7]} 51. Kb4 {[%clk
0:02:51.4]} 51... Qd2+ {[%clk 0:02:34.3]} 52. Kb3 {[%clk 0:02:49.6]} 52... h3
{[%clk 0:02:34.2]} 53. Kc4 {[%clk 0:02:48.6]} 53... h2 {[%clk 0:02:34.1]} 54.
Kb3 {[%clk 0:02:48.1]} 54... h1=Q {[%clk 0:02:34]} 55. Kc4 {[%clk 0:02:47.6]}
55... Qhc1+ {[%clk 0:02:33.9]} 56. Kb3 {[%clk 0:02:46.6]} 56... Qdb2+ {[%clk
0:02:32.8]} 57. Ka4 {[%clk 0:02:44.4]} 57... Qca1# {[%clk 0:02:32.7]} 0-1

[Event "Live Chess"]
[Site "Chess.com"]
[Date "2023.05.20"]
[Round "-"]
[White "Trendle"]
[Black "ethiebear"]
[Result "1-0"]
[WhiteElo "2665"]
[BlackElo "899"]
[TimeControl "300"]
[EndTime "11:21:47 PDT"]
[Termination "Trendle won by checkmate"]

1. d4 {[%clk 0:04:57.4]} 1... Nf6 {[%clk 0:04:56]} 2. Bf4 {[%clk 0:04:56.3]}
2... e6 {[%clk 0:04:51.4]} 3. e3 {[%clk 0:04:55.3]} 3... d5 {[%clk 0:04:47.2]}
4. Nf3 {[%clk 0:04:53.1]} 4... Bb4+ {[%clk 0:04:42.1]} 5. c3 {[%clk 0:04:52.3]}
5... Bd6 {[%clk 0:04:38.9]} 6. Ne5 {[%clk 0:04:51.8]} 6... Nc6 {[%clk
0:04:31.5]} 7. Bd3 {[%clk 0:04:49.3]} 7... O-O {[%clk 0:04:27.5]} 8. Nd2 {[%clk
0:04:47.6]} 8... b6 {[%clk 0:04:21.4]} 9. Nxc6 {[%clk 0:04:46.2]} 9... Qd7
{[%clk 0:04:13.5]} 10. Ne5 {[%clk 0:04:45.8]} 10... Qe7 {[%clk 0:04:08.6]} 11.
O-O {[%clk 0:04:43.2]} 11... Bb7 {[%clk 0:04:07.2]} 12. Qf3 {[%clk 0:04:41]}
12... h6 {[%clk 0:03:46.2]} 13. Qg3 {[%clk 0:04:37.1]} 13... g5 {[%clk
0:03:34.4]} 14. Bxg5 {[%clk 0:04:32.2]} 14... Nh5 {[%clk 0:03:32.1]} 15. Bxe7+
{[%clk 0:04:23.8]} 15... Nxg3 {[%clk 0:03:24.3]} 16. Bxf8 {[%clk 0:04:22.4]}
16... Nxf1 {[%clk 0:03:15.9]} 17. Bxd6 {[%clk 0:04:10.9]} 17... cxd6 {[%clk
0:03:11.4]} 18. Rxf1 {[%clk 0:04:08.6]} 18... dxe5 {[%clk 0:03:06.4]} 19. dxe5
{[%clk 0:04:08.5]} 19... d4 {[%clk 0:03:00.1]} 20. exd4 {[%clk 0:04:06.9]} 20...
Kg7 {[%clk 0:02:53]} 21. f4 {[%clk 0:04:06.2]} 21... Rg8 {[%clk 0:02:40.4]} 22.
f5 {[%clk 0:04:04.1]} 22... Kh8 {[%clk 0:02:36.7]} 23. g3 {[%clk 0:04:03]} 23...
h5 {[%clk 0:02:33.8]} 24. fxe6 {[%clk 0:04:01.6]} 24... h4 {[%clk 0:02:30.6]}
25. Rxf7 {[%clk 0:03:59.2]} 25... hxg3 {[%clk 0:02:28.5]} 26. Rh7# {[%clk
0:03:58.3]} 1-0

[Event "Live Chess"]
[Site "Chess.com"]
[Date "2023.05.20"]
[Round "-"]
[White "mattlirious"]
[Black "ViktorTheCoolBoy"]
[Result "0-1"]
[WhiteElo "1315"]
[BlackElo "2543"]
[TimeControl "300"]
[EndTime "11:22:03 PDT"]
[Termination "ViktorTheCoolBoy won by resignation"]

1. e4 {[%clk 0:04:56.3]} 1... c5 {[%clk 0:04:58.7]} 2. Nc3 {[%clk 0:04:21.8]}
2... e6 {[%clk 0:04:57.6]} 3. f4 {[%clk 0:03:08]} 3... d5 {[%clk 0:04:55.1]} 4.
Bb5+ {[%clk 0:03:03.3]} 4... Bd7 {[%clk 0:04:52.7]} 5. Bxd7+ {[%clk 0:03:02.5]}
5... Qxd7 {[%clk 0:04:51.6]} 6. Nf3 {[%clk 0:03:00.4]} 6... Nc6 {[%clk
0:04:49.4]} 7. O-O {[%clk 0:02:19.4]} 7... f6 {[%clk 0:04:47.4]} 8. d3 {[%clk
0:02:17]} 8... Nge7 {[%clk 0:04:30.5]} 9. Qe1 {[%clk 0:02:15.2]} 9... O-O-O
{[%clk 0:04:24]} 10. a4 {[%clk 0:02:03.8]} 10... Nb4 {[%clk 0:04:15.6]} 11. Qf2
{[%clk 0:01:57.7]} 11... d4 {[%clk 0:04:11.3]} 12. Nd1 {[%clk 0:01:40.6]} 12...
Nec6 {[%clk 0:04:04.7]} 13. Bd2 {[%clk 0:01:39.5]} 13... Nxc2 {[%clk 0:04:02.2]}
14. Ba5 {[%clk 0:01:25.1]} 14... Nxa1 {[%clk 0:03:58.3]} 15. Bxd8 {[%clk
0:01:23.5]} 15... Qxd8 {[%clk 0:03:58.2]} 16. Qd2 {[%clk 0:01:08.8]} 16... Qb6
{[%clk 0:03:55.2]} 17. Re1 {[%clk 0:00:59.3]} 17... Qb4 {[%clk 0:03:51.4]} 18.
Qxb4 {[%clk 0:00:57.2]} 18... Nxb4 {[%clk 0:03:51.3]} 19. Re2 {[%clk 0:00:54.3]}
19... Nb3 {[%clk 0:03:49.6]} 20. Nf2 {[%clk 0:00:50.1]} 20... Be7 {[%clk
0:03:43.4]} 21. e5 {[%clk 0:00:49.3]} 21... Kd7 {[%clk 0:03:40.3]} 22. exf6
{[%clk 0:00:47.9]} 22... gxf6 {[%clk 0:03:40.2]} 23. Ne4 {[%clk 0:00:45.8]}
23... Nxd3 {[%clk 0:03:29.5]} 0-1

[Event "Live Chess"]
[Site "Chess.com"]
[Date "2023.05.20"]
[Round "-"]
[White "Enhard"]
[Black "GEMdzq"]
[Result "0-1"]
[WhiteElo "1439"]
[BlackElo "2202"]
[TimeControl "300"]
[EndTime "11:22:15 PDT"]
[Termination "GEMdzq won by resignation"]

1. d4 {[%clk 0:04:57.2]} 1... Nf6 {[%clk 0:04:58.5]} 2. Bf4 {[%clk 0:04:56.3]}
2... e6 {[%clk 0:04:57.6]} 3. e3 {[%clk 0:04:55.5]} 3... c5 {[%clk 0:04:57.1]}
4. c3 {[%clk 0:04:54.5]} 4... Qb6 {[%clk 0:04:55.8]} 5. Qb3 {[%clk 0:04:53.4]}
5... Nc6 {[%clk 0:04:54.2]} 6. Nf3 {[%clk 0:04:48.2]} 6... Nd5 {[%clk
0:04:52.9]} 7. Bg3 {[%clk 0:04:45.3]} 7... cxd4 {[%clk 0:04:52.6]} 8. Nxd4
{[%clk 0:04:43.7]} 8... Nxd4 {[%clk 0:04:47.2]} 9. exd4 {[%clk 0:04:41.8]} 9...
Be7 {[%clk 0:04:43.3]} 10. Nd2 {[%clk 0:04:40]} 10... f5 {[%clk 0:04:38]} 11.
Be2 {[%clk 0:04:35.3]} 11... f4 {[%clk 0:04:34.9]} 12. Bxf4 {[%clk 0:04:13.3]}
12... Nxf4 {[%clk 0:04:32.7]} 13. Qc2 {[%clk 0:04:10.9]} 13... Nxe2 {[%clk
0:04:30.1]} 14. Kxe2 {[%clk 0:04:09.7]} 14... O-O {[%clk 0:04:28.9]} 15. f3
{[%clk 0:04:05.7]} 15... d5 {[%clk 0:04:26]} 16. Rhe1 {[%clk 0:04:03.8]} 16...
e5 {[%clk 0:04:24.7]} 17. Kf1 {[%clk 0:03:51.1]} 17... e4 {[%clk 0:04:20.7]} 18.
Kg1 {[%clk 0:03:45.8]} 18... Bh4 {[%clk 0:04:17.5]} 19. Re2 {[%clk 0:03:39.5]}
19... exf3 {[%clk 0:04:10.2]} 20. Nxf3 {[%clk 0:03:35.4]} 20... Bf5 {[%clk
0:04:08.8]} 21. Qb3 {[%clk 0:03:29.3]} 21... Qxb3 {[%clk 0:04:02.3]} 22. axb3
{[%clk 0:03:26.9]} 22... Bf6 {[%clk 0:04:02]} 23. Ne5 {[%clk 0:03:22.2]} 23...
Rfe8 {[%clk 0:03:58]} 24. Rae1 {[%clk 0:03:20]} 24... Bxe5 {[%clk 0:03:55.9]}
25. dxe5 {[%clk 0:03:18.2]} 25... Be4 {[%clk 0:03:54.5]} 26. Kf2 {[%clk
0:03:16.1]} 26... Rxe5 {[%clk 0:03:52.6]} 27. c4 {[%clk 0:03:14.6]} 27... Rf8+
{[%clk 0:03:45.9]} 28. Kg1 {[%clk 0:03:11.6]} 28... Rg5 {[%clk 0:03:45.1]} 29.
cxd5 {[%clk 0:03:08.9]} 29... Bxd5 {[%clk 0:03:44.2]} 30. g3 {[%clk 0:03:06.4]}
30... h5 {[%clk 0:03:42.7]} 31. Re5 {[%clk 0:03:02.3]} 31... Rxe5 {[%clk
0:03:41.7]} 32. Rxe5 {[%clk 0:03:01.3]} 32... Bf3 {[%clk 0:03:39.9]} 33. Re3
{[%clk 0:02:56.6]} 33... Bc6 {[%clk 0:03:37]} 0-1

[Event "Live Chess"]
[Site "Chess.com"]
[Date "2023.05.20"]
[Round "-"]
[White "TobyQuaite"]
[Black "CocheseUK"]
[Result "1-0"]
[WhiteElo "1694"]
[BlackElo "1103"]
[TimeControl "300"]
[EndTime "11:22:34 PDT"]
[Termination "TobyQuaite won by resignation"]

1. e4 {[%clk 0:04:59.2]} 1... e5 {[%clk 0:04:57]} 2. Nf3 {[%clk 0:04:57.8]} 2...
Nc6 {[%clk 0:04:53.8]} 3. d4 {[%clk 0:04:57.3]} 3... d6 {[%clk 0:04:47.3]} 4. d5
{[%clk 0:04:55.5]} 4... Nce7 {[%clk 0:04:43.8]} 5. c4 {[%clk 0:04:51.9]} 5... g6
{[%clk 0:04:40.4]} 6. Nc3 {[%clk 0:04:51.1]} 6... Bg7 {[%clk 0:04:39.2]} 7. Be3
{[%clk 0:04:42.9]} 7... Nf6 {[%clk 0:04:32.4]} 8. c5 {[%clk 0:04:40.9]} 8... O-O
{[%clk 0:04:23.7]} 9. Bd3 {[%clk 0:04:34.2]} 9... c6 {[%clk 0:04:12.6]} 10. cxd6
{[%clk 0:04:24.7]} 10... Qxd6 {[%clk 0:04:09.9]} 11. dxc6 {[%clk 0:04:13.4]}
11... Qxc6 {[%clk 0:04:01.4]} 12. O-O {[%clk 0:04:09]} 12... Be6 {[%clk
0:03:48.3]} 13. Bb5 {[%clk 0:04:00]} 13... Qc7 {[%clk 0:03:42]} 14. Ng5 {[%clk
0:03:44.6]} 14... Bd7 {[%clk 0:03:11.5]} 15. Bxd7 {[%clk 0:03:33]} 15... Nxd7
{[%clk 0:03:10.1]} 16. f4 {[%clk 0:03:32.6]} 16... f6 {[%clk 0:03:03.4]} 17. Ne6
{[%clk 0:03:29.3]} 17... Qc4 {[%clk 0:02:49.1]} 18. Nxf8 {[%clk 0:03:28.3]}
18... Nxf8 {[%clk 0:02:36]} 19. fxe5 {[%clk 0:03:26.8]} 19... fxe5 {[%clk
0:02:31.6]} 20. Nd5 {[%clk 0:03:22.2]} 20... Nxd5 {[%clk 0:02:27]} 21. Qxd5+
{[%clk 0:03:20.9]} 21... Qxd5 {[%clk 0:02:24.9]} 22. exd5 {[%clk 0:03:20.8]}
22... e4 {[%clk 0:02:23]} 23. Rf2 {[%clk 0:03:12.7]} 23... Nd7 {[%clk
0:02:18.1]} 24. Rc1 {[%clk 0:03:07.2]} 24... Be5 {[%clk 0:02:05.1]} 25. Bf4
{[%clk 0:02:57.9]} 25... e3 {[%clk 0:01:56.2]} 26. Rf3 {[%clk 0:02:50.8]} 26...
Bxb2 {[%clk 0:01:49.5]} 27. Rb1 {[%clk 0:02:45.8]} 27... Ne5 {[%clk 0:01:42.3]}
28. Bxe5 {[%clk 0:02:43.9]} 28... Bxe5 {[%clk 0:01:41]} 29. Rxb7 {[%clk
0:02:40.3]} 1-0

[Event "Live Chess"]
[Site "Chess.com"]
[Date "2023.05.20"]
[Round "-"]
[White "Geomorph"]
[Black "McSlash1"]
[Result "0-1"]
[WhiteElo "1222"]
[BlackElo "2053"]
[TimeControl "300"]
[EndTime "11:22:35 PDT"]
[Termination "McSlash1 won on time"]

1. e4 {[%clk 0:04:58.1]} 1... c5 {[%clk 0:04:59.4]} 2. Nf3 {[%clk 0:04:56.6]}
2... d6 {[%clk 0:04:58.6]} 3. d4 {[%clk 0:04:55]} 3... cxd4 {[%clk 0:04:58.5]}
4. Qxd4 {[%clk 0:04:53.8]} 4... Nf6 {[%clk 0:04:58]} 5. Bg5 {[%clk 0:04:50.9]}
5... Nc6 {[%clk 0:04:57.1]} 6. Bb5 {[%clk 0:04:49.9]} 6... Bd7 {[%clk
0:04:55.7]} 7. Bxc6 {[%clk 0:04:49.1]} 7... bxc6 {[%clk 0:04:55.6]} 8. Nc3
{[%clk 0:04:48.4]} 8... c5 {[%clk 0:04:51.3]} 9. Qd3 {[%clk 0:04:40.1]} 9... Bc6
{[%clk 0:04:43.7]} 10. O-O-O {[%clk 0:04:31.7]} 10... Nd7 {[%clk 0:04:36]} 11.
Nd5 {[%clk 0:04:19.1]} 11... h6 {[%clk 0:04:30.4]} 12. Bh4 {[%clk 0:03:57.4]}
12... g5 {[%clk 0:04:29.6]} 13. Bg3 {[%clk 0:03:56.4]} 13... Bg7 {[%clk
0:04:28.7]} 14. Nd2 {[%clk 0:03:33.2]} 14... Rb8 {[%clk 0:04:22.9]} 15. Nc3
{[%clk 0:03:31.9]} 15... Qb6 {[%clk 0:04:19.8]} 16. Nc4 {[%clk 0:03:29.7]} 16...
Qb4 {[%clk 0:04:07.2]} 17. a3 {[%clk 0:03:10.4]} 17... Qb7 {[%clk 0:04:02.2]}
18. Bxd6 {[%clk 0:03:05.4]} 18... Bd4 {[%clk 0:03:31.5]} 19. Bxb8 {[%clk
0:02:50.7]} 19... Nxb8 {[%clk 0:03:31.4]} 20. Na5 {[%clk 0:02:26.9]} 20... Qc7
{[%clk 0:03:19.6]} 21. Nb3 {[%clk 0:02:24.9]} 21... e5 {[%clk 0:03:08.4]} 22. f3
{[%clk 0:02:19.6]} 22... Nd7 {[%clk 0:03:02]} 23. Ne2 {[%clk 0:02:17.5]} 23...
a6 {[%clk 0:02:58.6]} 24. Nbxd4 {[%clk 0:02:09.5]} 24... cxd4 {[%clk 0:02:55.1]}
25. Qxa6 {[%clk 0:02:06.8]} 25... O-O {[%clk 0:02:54]} 26. Qc4 {[%clk
0:01:56.6]} 26... Rb8 {[%clk 0:02:47.9]} 27. h4 {[%clk 0:01:53]} 27... Qb6
{[%clk 0:02:41.4]} 28. b4 {[%clk 0:01:33.1]} 28... Bb5 {[%clk 0:02:38.3]} 29.
Qd5 {[%clk 0:01:15.5]} 29... Nf6 {[%clk 0:02:33.9]} 30. Qxe5 {[%clk 0:01:06.4]}
30... Bxe2 {[%clk 0:02:32.4]} 31. Rxd4 {[%clk 0:00:55.9]} 31... Re8 {[%clk
0:02:16.4]} 32. Qd6 {[%clk 0:00:34.7]} 32... Qxd6 {[%clk 0:01:59.5]} 33. Rxd6
{[%clk 0:00:33.6]} 33... Kg7 {[%clk 0:01:54.4]} 34. hxg5 {[%clk 0:00:32.7]}
34... hxg5 {[%clk 0:01:52]} 35. Kd2 {[%clk 0:00:27]} 35... Bb5 {[%clk
0:01:51.1]} 36. Rb6 {[%clk 0:00:23.9]} 36... Rd8+ {[%clk 0:01:44.8]} 37. Ke3
{[%clk 0:00:19.5]} 37... Ba4 {[%clk 0:01:43.4]} 38. c4 {[%clk 0:00:18]} 38...
Bb3 {[%clk 0:01:35.2]} 39. c5 {[%clk 0:00:16.7]} 39... Re8 {[%clk 0:01:34.7]}
40. a4 {[%clk 0:00:15.5]} 40... Nd5+ {[%clk 0:01:33.5]} 41. Kd4 {[%clk
0:00:12.9]} 41... Nxb6 {[%clk 0:01:32.8]} 42. cxb6 {[%clk 0:00:11.7]} 42... Bxa4
{[%clk 0:01:32.4]} 43. b7 {[%clk 0:00:11]} 43... Rb8 {[%clk 0:01:31.6]} 44. Ra1
{[%clk 0:00:08.7]} 44... Bc6 {[%clk 0:01:28.2]} 45. Ra4 {[%clk 0:00:08.6]} 45...
Bxa4 {[%clk 0:01:24.8]} 46. Kc5 {[%clk 0:00:06.2]} 46... Rxb7 {[%clk 0:01:21.4]}
47. g4 {[%clk 0:00:05.6]} 47... Bd7 {[%clk 0:01:20.4]} 48. e5 {[%clk 0:00:04.8]}
48... Be6 {[%clk 0:01:19]} 49. b5 {[%clk 0:00:03.6]} 49... Bd7 {[%clk
0:01:17.6]} 50. b6 {[%clk 0:00:02.6]} 50... Kf8 {[%clk 0:01:15.5]} 51. f4 {[%clk
0:00:02]} 51... gxf4 {[%clk 0:01:14.3]} 0-1

[Event "Live Chess"]
[Site "Chess.com"]
[Date "2023.05.20"]
[Round "-"]
[White "LaupMiths"]
[Black "luckywookie"]
[Result "1-0"]
[WhiteElo "1834"]
[BlackElo "729"]
[TimeControl "300"]
[EndTime "11:22:35 PDT"]
[Termination "LaupMiths won on time"]

1. d4 {[%clk 0:04:57.3]} 1... d5 {[%clk 0:04:58.2]} 2. Nf3 {[%clk 0:04:55.9]}
2... c6 {[%clk 0:04:44.2]} 3. Bf4 {[%clk 0:04:50.9]} 3... Nd7 {[%clk 0:04:40.9]}
4. e3 {[%clk 0:04:49.2]} 4... Nb6 {[%clk 0:04:39.6]} 5. c3 {[%clk 0:04:48]} 5...
Bg4 {[%clk 0:04:31.9]} 6. Bd3 {[%clk 0:04:47]} 6... Nf6 {[%clk 0:04:25.7]} 7. h3
{[%clk 0:04:44.4]} 7... Bxf3 {[%clk 0:04:23.4]} 8. Qxf3 {[%clk 0:04:43.9]} 8...
Ne4 {[%clk 0:04:09.8]} 9. Bxe4 {[%clk 0:04:39.4]} 9... dxe4 {[%clk 0:04:07.8]}
10. Qxe4 {[%clk 0:04:39]} 10... Nd5 {[%clk 0:04:06]} 11. Bg3 {[%clk 0:04:36.8]}
11... e6 {[%clk 0:03:59.7]} 12. O-O {[%clk 0:04:35.7]} 12... Bd6 {[%clk
0:03:56.4]} 13. Bxd6 {[%clk 0:04:33.4]} 13... Qxd6 {[%clk 0:03:55.1]} 14. Nd2
{[%clk 0:04:31.2]} 14... O-O {[%clk 0:03:50.9]} 15. a3 {[%clk 0:04:29.6]} 15...
Rae8 {[%clk 0:03:49.1]} 16. c4 {[%clk 0:04:27.5]} 16... Nf6 {[%clk 0:03:42.9]}
17. Qf3 {[%clk 0:04:26.1]} 17... e5 {[%clk 0:03:32.3]} 18. dxe5 {[%clk
0:04:14.8]} 18... Qxe5 {[%clk 0:03:23.7]} 19. b4 {[%clk 0:04:08.8]} 19... Qb2
{[%clk 0:03:18.2]} 20. Rfd1 {[%clk 0:04:01.4]} 20... Rd8 {[%clk 0:03:11.9]} 21.
Ne4 {[%clk 0:03:55]} 21... Rxd1+ {[%clk 0:03:09.1]} 22. Rxd1 {[%clk 0:03:53.8]}
22... Nxe4 {[%clk 0:03:04.5]} 23. Qxe4 {[%clk 0:03:52.7]} 23... Qxa3 {[%clk
0:02:58.1]} 24. Qe7 {[%clk 0:03:51.4]} 24... h6 {[%clk 0:02:27.5]} 25. Rd8
{[%clk 0:03:44.5]} 25... Rxd8 {[%clk 0:02:25]} 26. Qxd8+ {[%clk 0:03:44]} 26...
Kh7 {[%clk 0:02:23.8]} 27. Qd2 {[%clk 0:03:25.2]} 27... Qa1+ {[%clk 0:02:05.9]}
28. Kh2 {[%clk 0:03:23.2]} 28... Qe5+ {[%clk 0:01:57.4]} 29. g3 {[%clk
0:03:17.3]} 29... a6 {[%clk 0:01:55.8]} 30. Qd3+ {[%clk 0:02:47.3]} 30... f5
{[%clk 0:01:49.7]} 31. Qd7 {[%clk 0:02:36.8]} 31... Qb2 {[%clk 0:01:31.9]} 32.
Kg2 {[%clk 0:02:21.9]} 32... b5 {[%clk 0:01:26.4]} 33. Qxf5+ {[%clk 0:02:17.5]}
33... Kg8 {[%clk 0:01:20.1]} 34. Qe6+ {[%clk 0:02:15.1]} 34... Kh7 {[%clk
0:01:17.3]} 35. cxb5 {[%clk 0:02:13.1]} 35... Qxb4 {[%clk 0:01:03.8]} 36. bxc6
{[%clk 0:02:08.6]} 36... a5 {[%clk 0:00:56.3]} 37. Qf5+ {[%clk 0:02:03.7]} 37...
Kg8 {[%clk 0:00:53.3]} 38. Qc8+ {[%clk 0:02:01]} 38... Kh7 {[%clk 0:00:50.5]}
39. Qb7 {[%clk 0:02:00]} 39... Qe4+ {[%clk 0:00:36.7]} 40. Kg1 {[%clk
0:01:52.7]} 40... a4 {[%clk 0:00:28]} 41. Qa6 {[%clk 0:01:51.6]} 41... Qe6
{[%clk 0:00:16.6]} 42. Qxa4 {[%clk 0:01:48.2]} 42... Qc8 {[%clk 0:00:09.8]} 43.
Qb5 {[%clk 0:01:44.7]} 43... Qd8 {[%clk 0:00:02.4]} 44. Qb1+ {[%clk 0:01:35.5]}
1-0

[Event "Live Chess"]
[Site "Chess.com"]
[Date "2023.05.20"]
[Round "-"]
[White "ReeceHockton"]
[Black "MarkLim1"]
[Result "0-1"]
[WhiteElo "323"]
[BlackElo "1620"]
[TimeControl "300"]
[EndTime "11:22:36 PDT"]
[Termination "MarkLim1 won by resignation"]

1. d4 {[%clk 0:04:58.3]} 1... Nf6 {[%clk 0:04:58.9]} 2. Nf3 {[%clk 0:04:56]}
2... e6 {[%clk 0:04:58]} 3. c3 {[%clk 0:04:53.7]} 3... b6 {[%clk 0:04:56.6]} 4.
Bf4 {[%clk 0:04:52.1]} 4... Ba6 {[%clk 0:04:54.2]} 5. e3 {[%clk 0:04:49.2]} 5...
Bxf1 {[%clk 0:04:52.9]} 6. Rxf1 {[%clk 0:04:48.2]} 6... Be7 {[%clk 0:04:51.4]}
7. Nbd2 {[%clk 0:04:46.3]} 7... O-O {[%clk 0:04:50.6]} 8. Qe2 {[%clk 0:04:40.3]}
8... c5 {[%clk 0:04:48.4]} 9. O-O-O {[%clk 0:04:37.7]} 9... Nc6 {[%clk
0:04:47.1]} 10. Qa6 {[%clk 0:04:28.6]} 10... cxd4 {[%clk 0:04:44.8]} 11. Qb7
{[%clk 0:04:25.7]} 11... dxc3 {[%clk 0:04:39.9]} 12. bxc3 {[%clk 0:04:23.9]}
12... Na5 {[%clk 0:04:29.3]} 13. Bc7 {[%clk 0:04:20.1]} 13... Qc8 {[%clk
0:04:27.1]} 14. Qxc8 {[%clk 0:04:16.4]} 14... Raxc8 {[%clk 0:04:26]} 15. Be5
{[%clk 0:04:10.1]} 15... d6 {[%clk 0:04:21.5]} 16. Bxf6 {[%clk 0:04:07.9]} 16...
Bxf6 {[%clk 0:04:20.6]} 17. Nd4 {[%clk 0:04:00.9]} 17... Rxc3+ {[%clk
0:04:15.7]} 18. Nc2 {[%clk 0:03:55]} 18... Rfc8 {[%clk 0:04:12.4]} 19. Nb3
{[%clk 0:03:51.4]} 19... Rxc2+ {[%clk 0:04:10]} 20. Kb1 {[%clk 0:03:49.3]} 20...
Rb2+ {[%clk 0:04:07.8]} 21. Ka1 {[%clk 0:03:46.8]} 21... Rxb3+ {[%clk
0:04:02.5]} 22. Rd4 {[%clk 0:03:39.8]} 22... Bxd4+ {[%clk 0:04:01]} 23. exd4
{[%clk 0:03:39]} 23... Rd3 {[%clk 0:03:54.3]} 24. Rb1 {[%clk 0:03:35]} 24...
Rxd4 {[%clk 0:03:51.8]} 25. Rd1 {[%clk 0:03:33.5]} 25... Rxd1+ {[%clk
0:03:50.3]} 0-1